fUSD/lending_fUSD_20250208
["ID","MTS","AMOUNT","RATE_DAILY","PERIOD"]
[352264144,1739021433908,-500.0,0.00010117,2]
[352264146,1739021433917,-500.0,0.00010117,2]
[352264148,1739021433927,-500.0,0.00010117,2]
[352264150,1739021433936,-503.05550398,0.00010117,2]
[352264152,1739021433945,-500.0,0.00010117,2]
[352264154,1739021433955,-500.0,0.00010117,2]
[352264155,1739021433965,-926.98,0.00010117,2]
[352264156,1739021433975,-500.0,0.00010117,2]
[352264157,1739021433984,-500.0,0.00010117,2]
[352264158,1739021433993,-500.0,0.00010117,2]
[352264159,1739021434002,-500.0,0.00010117,2]
[352264160,1739021434012,-500.0,0.00010117,2]
[352264161,1739021434022,-500.0,0.00010117,2]
[352264162,1739021434031,-500.0,0.00010117,2]
[352264163,1739021434040,-500.00002167,0.00010117,2]
[352264164,1739021434050,-500.0,0.00010117,2]
[352264165,1739021434059,-500.0,0.00010117,2]
[352264166,1739021434069,-500.0,0.00010117,2]
[352264167,1739021434080,-500.0,0.00010117,2]
[352264168,1739021434089,-825.95,0.00010117,2]
[352264169,1739021434099,-500.0,0.00010117,2]
[352264170,1739021434108,-500.0,0.00010117,2]
[352264171,1739021434117,-500.0,0.00010117,2]
[352264172,1739021434127,-500.0,0.00010117,2]
[352264173,1739021434137,-500.0,0.00010117,2]
[352264174,1739021434146,-500.0,0.00010117,2]
[352264175,1739021434156,-569.58,0.00010117,2]
[352264176,1739021434166,-500.0,0.00010117,2]
[352264177,1739021434176,-500.0,0.00010117,2]
[352264178,1739021434186,-500.0,0.00010117,2]
[352264179,1739021434198,-500.0,0.00010117,2]
[352264180,1739021434211,-500.0,0.00010117,2]
[352264181,1739021434222,-500.0,0.00010117,2]
[352264182,1739021434232,-1113.59,0.00010117,2]
[352264183,1739021434243,-501.27597749,0.00010117,2]
[352264184,1739021434254,-500.0,0.00010117,2]
[352264185,1739021434265,-500.0,0.00010117,2]
[352264186,1739021434275,-500.0,0.00010117,2]
[352264187,1739021434285,-500.0,0.00010117,2]
[352264188,1739021434296,-500.31939371,0.00010117,2]
[352264189,1739021434306,-500.0,0.00010117,2]
[352264190,1739021434317,-500.0,0.00010117,2]
[352264191,1739021434328,-500.0,0.00010117,2]
[352264192,1739021434338,-500.0,0.00010117,2]
[352264193,1739021434349,-500.0,0.00010117,2]
[352264194,1739021434359,-500.0,0.00010117,2]
[352264195,1739021434368,-500.0,0.00010117,2]
[352264196,1739021434379,-500.0,0.00010117,2]
[352264197,1739021434389,-500.0,0.00010117,2]
[352264198,1739021434399,-1098.41,0.00010117,2]
[352264199,1739021434408,-500.0,0.00010117,2]
[352264200,1739021434418,-500.0,0.00010117,2]
[352264201,1739021434428,-500.0,0.00010117,2]
[352264202,1739021434438,-500.0,0.00010117,2]
[352264203,1739021434447,-500.0,0.00010117,2]
[352264204,1739021434457,-500.0,0.00010117,2]
[352264205,1739021434468,-500.0,0.00010117,2]
[352264206,1739021434478,-500.0,0.00010117,2]
[352264207,1739021434488,-500.0,0.00010117,2]
[352264208,1739021434499,-524.67,0.00010117,2]
[352264209,1739021434509,-878.51,0.00010117,2]
[352264210,1739021434518,-589.79,0.00010117,2]
[352264211,1739021434528,-500.0,0.00010117,2]
[352264212,1739021434538,-500.0,0.00010117,2]
[352264213,1739021434547,-500.0,0.00010117,2]
[352264214,1739021434557,-505.8935671,0.00010117,2]
[352264215,1739021434567,-776.8,0.00010117,2]
[352264216,1739021434577,-1439.01,0.00010117,2]
[352264217,1739021434586,-500.0,0.00010117,2]
[352264218,1739021434596,-500.0,0.00010117,2]
[352264219,1739021434605,-183.25253645,0.00010117,2]
[352264220,1739021434615,-500.0,0.00010117,2]
[352264221,1739021434624,-977.59,0.00010117,2]
[352264222,1739021434633,-500.58348483,0.00010117,2]
[352264223,1739021434643,-500.0,0.00010117,2]
[352264224,1739021434652,-500.0,0.00010117,2]
[352264225,1739021434663,-500.0,0.00010117,2]
[352264226,1739021434672,-518.87,0.00010117,2]
[352264227,1739021434682,-500.0,0.00010117,2]
[352264228,1739021434691,-500.0,0.00010117,2]
[352264229,1739021434700,-500.0,0.00010117,2]
[352264230,1739021434709,-500.0,0.00010117,2]
[352264231,1739021434718,-586.18,0.00010117,2]
[352264232,1739021434727,-500.0,0.00010117,2]
[352264233,1739021434736,-500.0,0.00010117,2]
[352264234,1739021434745,-497.42170741,0.00010117,2]
[352264235,1739021434755,-500.0,0.00010117,2]
[352264236,1739021434764,-855.52,0.00010117,2]
[352264237,1739021434773,-913.73,0.00010117,2]
[352264238,1739021434782,-548.56,0.00010117,2]
[352264239,1739021434791,-501.99975067,0.00010117,2]
[352264240,1739021434800,-500.0,0.00010117,2]
[352264241,1739021434809,-500.0,0.00010117,2]
[352264242,1739021434818,-500.0,0.00010117,2]
[352264243,1739021434833,-500.0,0.00010117,2]
[352264244,1739021434842,-500.0,0.00010117,2]
[352264245,1739021434851,-942.25,0.00010117,2]
[352264246,1739021434860,-500.0,0.00010117,2]
[352264247,1739021434869,-500.0,0.00010117,2]
[352264248,1739021434878,-505.26751141,0.00010117,2]
[352264249,1739021434887,-500.0,0.00010117,2]
[352264250,1739021434897,-643.97,0.00010117,2]
[352264251,1739021434906,-500.0,0.00010117,2]
[352264252,1739021434915,-908.34,0.00010117,2]
[352264253,1739021434924,-500.0,0.00010117,2]
[352264254,1739021434933,-936.57,0.00010117,2]
[352264255,1739021434942,-500.0,0.00010117,2]
[352264256,1739021434951,-742.91,0.00010117,2]
[352264257,1739021434960,-591.71302757,0.00010117,2]
[352264258,1739021434970,-500.0,0.00010117,2]
[352264259,1739021434979,-500.0,0.00010117,2]
[352264260,1739021434988,-900.55,0.00010117,2]
[352264261,1739021434997,-500.0,0.00010117,2]
[352264262,1739021435007,-500.0,0.00010117,2]
[352264263,1739021435016,-500.0,0.00010117,2]
[352264264,1739021435025,-502.4465916,0.00010117,2]
[352264265,1739021435035,-500.0,0.00010117,2]
[352264266,1739021435044,-908.88,0.00010117,2]
[352264267,1739021435053,-500.0,0.00010117,2]
[352264268,1739021435063,-500.0,0.00010117,2]
[352264269,1739021435075,-500.0,0.00010117,2]
[352264270,1739021435084,-501.01715925,0.00010117,2]
[352264271,1739021435093,-978.2,0.00010117,2]
[352264272,1739021435102,-500.0,0.00010117,2]
[352264273,1739021435111,-908.42,0.00010117,2]
[352264274,1739021435120,-500.0,0.00010117,2]
[352264275,1739021435131,-2062.17,0.00010117,2]
[352264276,1739021435140,-500.0,0.00010117,2]
[352264277,1739021435150,-500.0,0.00010117,2]
[352264278,1739021435159,-732.41,0.00010117,2]
[352264279,1739021435168,-500.0,0.00010117,2]
[352264280,1739021435177,-500.0,0.00010117,2]
[352264281,1739021435187,-999.99,0.00010117,2]
[352264282,1739021435198,-500.0,0.00010117,2]
[352264283,1739021435210,-1214.33,0.00010117,2]
[352264284,1739021435220,-554.39,0.00010117,2]
[352264285,1739021435229,-500.0,0.00010117,2]
[352264286,1739021435239,-500.0,0.00010117,2]
[352264287,1739021435248,-1010.15,0.00010117,2]
[352264288,1739021435257,-2428.03,0.00010117,2]
[352264289,1739021435267,-500.0,0.00010117,2]
[352264290,1739021435277,-884.5,0.00010117,2]
[352264291,1739021435286,-1200.16,0.00010117,2]
[352264292,1739021435296,-500.0,0.00010117,2]
[352264293,1739021435306,-5420.56,0.00010117,2]
[352264294,1739021435315,-500.0,0.00010117,2]
[352264295,1739021435325,-500.0,0.00010117,2]
[352264296,1739021435335,-1258.75,0.00010117,2]
[352264297,1739021435344,-500.0,0.00010117,2]
[352264298,1739021435353,-1118.69,0.00010117,2]
[352264299,1739021435362,-500.0,0.00010117,2]
[352264300,1739021435371,-500.0,0.00010117,2]
[352264301,1739021435381,-896.11,0.00010117,2]
[352264302,1739021435390,-1588.33,0.00010117,2]
[352264303,1739021435399,-500.0,0.00010117,2]
[352264304,1739021435408,-500.0,0.00010117,2]
[352264305,1739021435417,-503.96318303,0.00010117,2]
[352264306,1739021435427,-794.47,0.00010117,2]
[352264307,1739021435436,-1439.17,0.00010117,2]
[352264308,1739021435445,-500.0,0.00010117,2]
[352264309,1739021435455,-500.0,0.00010117,2]
[352264310,1739021435464,-500.0,0.00010117,2]
[352264311,1739021435473,-203.4170168,0.00010117,2]
[352264312,1739021435482,-500.0,0.00010117,2]
[352264313,1739021435491,-571.6,0.00010117,2]
[352264314,1739021435500,-920.36,0.00010117,2]
[352264315,1739021435510,-1334.12,0.00010117,2]
[352264316,1739021435519,-1217.52,0.00010117,2]
[352264317,1739021435528,-1131.43,0.00010117,2]
[352264318,1739021435537,-588.17,0.00010117,2]
[352264319,1739021435546,-991.46,0.00010117,2]
[352264320,1739021435556,-504.19022145,0.00010117,2]
[352264321,1739021435565,-500.0,0.00010117,2]
[352264322,1739021435575,-500.0,0.00010117,2]
[352264323,1739021435584,-1017.16,0.00010117,2]
[352264324,1739021435593,-733.79,0.00010117,2]
[352264325,1739021435603,-500.0,0.00010117,2]
[352264326,1739021435614,-3270.86,0.00010117,2]
[352264327,1739021435623,-569.88,0.00010117,2]
[352264328,1739021435633,-1422.78,0.00010117,2]
[352264329,1739021435642,-1321.24,0.00010117,2]
[352264330,1739021435651,-500.0,0.00010117,2]
[352264331,1739021435661,-501.61268735,0.00010117,2]
[352264332,1739021435671,-500.0,0.00010117,2]
[352264333,1739021435680,-500.0,0.00010117,2]
[352264334,1739021435689,-500.0,0.00010117,2]
[352264335,1739021435698,-2291.76,0.00010117,2]
[352264336,1739021435707,-1009.53,0.00010117,2]
[352264337,1739021435717,-500.0,0.00010117,2]
[352264338,1739021435726,-1020.34,0.00010117,2]
[352264339,1739021435735,-560.48,0.00010117,2]
[352264340,1739021435744,-518.57,0.00010117,2]
[352264341,1739021435753,-888.74,0.00010117,2]
[352264342,1739021435762,-6776.61,0.00010117,2]
[352264343,1739021435771,-500.0,0.00010117,2]
[352264344,1739021435780,-1427.19,0.00010117,2]
[352264345,1739021435789,-500.0,0.00010117,2]
[352264346,1739021435798,-1649.01,0.00010117,2]
[352264347,1739021435807,-2658.58,0.00010117,2]
[352264348,1739021435816,-500.0,0.00010117,2]
[352264349,1739021435826,-797.73,0.00010117,2]
[352264350,1739021435835,-969.25,0.00010117,2]
[352264351,1739021435844,-1236.49,0.00010117,2]
[352264352,1739021435853,-1376.87,0.00010117,2]
[352264353,1739021435863,-1150.23,0.00010117,2]
[352264354,1739021435872,-500.0,0.00010117,2]
[352264355,1739021435881,-500.0,0.00010117,2]
[352264356,1739021435890,-500.0,0.00010117,2]
[352264357,1739021435900,-1458.93,0.00010117,2]
[352264358,1739021435909,-2061.0,0.00010117,2]
[352264359,1739021435918,-1575.14,0.00010117,2]
[352264360,1739021435929,-1087.69,0.00010117,2]
[352264361,1739021435938,-500.0,0.00010117,2]
[352264362,1739021435947,-1008.68,0.00010117,2]
[352264363,1739021435956,-1024.98,0.00010117,2]
[352264364,1739021435966,-550.50885313,0.00010117,2]
[352264365,1739021435975,-1276.35,0.00010117,2]
[352264366,1739021435984,-505.3321557,0.00010117,2]
[352264367,1739021435994,-5315.42,0.00010117,2]
[352264368,1739021436003,-500.0,0.00010117,2]
[352264369,1739021436012,-1639.56,0.00010117,2]
[352264370,1739021436022,-500.0,0.00010117,2]
[352264371,1739021436031,-887.92,0.00010117,2]
[352264372,1739021436040,-866.96,0.00010117,2]
[352264373,1739021436050,-1491.22,0.00010117,2]
[352264374,1739021436059,-500.0,0.00010117,2]
[352264375,1739021436068,-500.0,0.00010117,2]
[352264376,1739021436078,-2150.42,0.00010117,2]
[352264377,1739021436087,-529.19754384,0.00010117,2]
[352264378,1739021436293,-500.0,0.00010117,2]
[352264379,1739021436303,-1999.01,0.00010117,2]
[352264380,1739021436312,-500.0,0.00010117,2]
[352264381,1739021436321,-500.0,0.00010117,2]
[352264382,1739021436332,-500.0,0.00010117,2]
[352264383,1739021436342,-1238.85,0.00010117,2]
[352264384,1739021436351,-500.0,0.00010117,2]
[352264385,1739021436361,-500.0,0.00010117,2]
[352264386,1739021436372,-501.64369746,0.00010117,2]
[352264387,1739021436381,-1772.33,0.00010117,2]
[352264388,1739021436390,-723.22,0.00010117,2]
[352264389,1739021436400,-500.0,0.00010117,2]
[352264390,1739021436409,-524.48,0.00010117,2]
[352264391,1739021436419,-500.0,0.00010117,2]
[352264392,1739021436428,-1821.75,0.00010117,2]
[352264393,1739021436438,-171.44424774,0.00010117,2]
[352264394,1739021436448,-500.0,0.00010117,2]
[352264395,1739021436458,-500.0,0.00010117,2]
[352264396,1739021436467,-2569.9,0.00010117,2]
[352264397,1739021436476,-500.0,0.00010117,2]
[352264398,1739021436486,-500.0,0.00010117,2]
[352264399,1739021436496,-979.84,0.00010117,2]
[352264400,1739021436505,-501.83394591,0.00010117,2]
[352264401,1739021436514,-1589.1,0.00010117,2]
[352264402,1739021436524,-500.0,0.00010117,2]
[352264403,1739021436534,-571.68455192,0.00010117,2]
[352264404,1739021436543,-500.0,0.00010117,2]
[352264405,1739021436552,-3567.02,0.00010117,2]
[352264406,1739021436561,-500.0,0.00010117,2]
[352264407,1739021436571,-500.0,0.00010117,2]
[352264408,1739021436582,-646.94,0.00010117,2]
[352264409,1739021436591,-1268.56,0.00010117,2]
[352264410,1739021436600,-500.0,0.00010117,2]
[352264411,1739021436610,-1774.78,0.00010117,2]
[352264412,1739021436620,-500.0,0.00010117,2]
[352264413,1739021436630,-500.0,0.00010117,2]
[352264414,1739021436641,-500.0,0.00010117,2]
[352264415,1739021436650,-500.0,0.00010117,2]
[352264416,1739021436661,-1824.03,0.00010117,2]
[352264417,1739021436670,-543.5425155,0.00010117,2]
[352264418,1739021436679,-2166.29,0.00010117,2]
[352264419,1739021436688,-718.34,0.00010117,2]
[352264420,1739021436697,-118.53656249,0.00010117,2]
[352264421,1739021436719,-881.46343751,0.00010117,2]
[352264422,1739021436728,-118.93456249,0.00010117,2]
[352264423,1739021436739,-381.06543751,0.00010117,2]
[352264424,1739021436748,-2367.62,0.00010117,2]
[352264425,1739021436757,-416.81456251,0.00010117,2]
[352264426,1739021436769,-342.50325878,0.00010117,2]
[352264427,1739021436787,-208.12217871,0.00010117,2]
[352264428,1739021436796,-500.0,0.00010117,2]
[352264429,1739021436805,-199.503341,0.00010117,2]
[352264430,1739021436814,-289.95868929,0.00010117,2]
[352264432,1739021438036,-500.0,0.00010116,2]
[352264433,1739021438046,-500.0,0.00010116,2]
[352264434,1739021438055,-500.97320927,0.00010116,2]
[352264435,1739021438064,-500.0,0.00010116,2]
[352264436,1739021438073,-500.0,0.00010116,2]
[352264437,1739021438084,-500.0,0.00010116,2]
[352264438,1739021438093,-210.04131071,0.00010117,2]
[352264439,1739021438102,-891.00878005,0.00010117,2]
[352264440,1739021438113,-105.18121995,0.00010117,2]
[352264441,1739021438122,-978.89,0.00010117,2]
[352264442,1739021438131,-1164.39,0.00010117,2]
[352264443,1739021438140,-500.0,0.00010117,2]
[352264444,1739021438150,-1326.59,0.00010117,2]
[352264445,1739021438159,-500.0,0.00010117,2]
[352264446,1739021438168,-500.0,0.00010117,2]
[352264447,1739021438177,-154.332206,0.00010117,2]
[352264448,1739021438186,-500.48712448,0.00010117,2]
[352264449,1739021438196,-1201.48,0.00010117,2]
[352264450,1739021438209,-2843.59488304,0.00010117,2]
[352264451,1739021438228,-744.54,0.00010116,2]
[352264452,1739021438238,-69.36511696,0.00010117,2]
[352264453,1739021438247,-1010.66,0.00010117,2]
[352264454,1739021438257,-500.0,0.00010117,2]
[352264455,1739021438267,-1794.88,0.00010117,2]
[352264456,1739021438278,-1069.33,0.00010117,2]
[352264457,1739021438287,-678.89,0.00010117,2]
[352264458,1739021438296,-1002.55,0.00010117,2]
[352264459,1739021438306,-500.0,0.00010117,2]
[352264461,1739021438315,-500.0,0.00010117,2]
[352264463,1739021438324,-500.71613284,0.00010117,2]
[352264465,1739021438334,-2141.6,0.00010117,2]
[352264467,1739021438343,-642.57801923,0.00010117,2]
[352264476,1739021438421,-564.37,0.00010117,2]
[352264477,1739021438436,-670.39,0.00010117,2]
[352264478,1739021438445,-706.03,0.00010117,2]
[352264479,1739021438454,-830.2,0.00010117,2]
[352264480,1739021438464,-500.0,0.00010117,2]
[352264481,1739021438473,-500.0,0.00010118,2]
[352264482,1739021438482,-500.85294046,0.00010118,2]
[352264483,1739021438492,-500.0,0.00010118,2]
[352264485,1739021438501,-500.0,0.00010118,2]
[352264487,1739021438510,-501.78630117,0.00010118,2]
[352264489,1739021438519,-500.50916,0.00010118,2]
[352264490,1739021438528,-268.09108266,0.00010118,2]
[352264492,1739021438537,-267.32903002,0.00010118,2]
[352264494,1739021438546,-500.0,0.00010118,2]
[352264496,1739021438555,-339.17612281,0.00010118,2]
[352264498,1739021438564,-500.0,0.00010118,2]
[352264500,1739021438573,-500.0,0.00010118,2]
[352264502,1739021438583,-501.97344587,0.00010118,2]
[352264504,1739021438592,-507.49202939,0.00010118,2]
[352264506,1739021438602,-506.1704193,0.00010118,2]
[352264508,1739021438611,-521.85601801,0.00010118,2]
[352264510,1739021438620,-500.0,0.00010118,2]
[352264512,1739021438629,-500.0,0.00010118,2]
[352264514,1739021438638,-503.60011296,0.00010118,2]
[352264516,1739021438647,-192.16679106,0.00010118,2]
[352264518,1739021438657,-500.0,0.00010118,2]
[352264520,1739021438666,-500.0,0.00010118,2]
[352264522,1739021438675,-500.0,0.00010118,2]
[352264524,1739021438684,-560.98486621,0.00010118,2]
[352264526,1739021438694,-256.66412613,0.00010118,2]
[352264528,1739021438703,-500.30524853,0.00010118,2]
[352264530,1739021438712,-500.0,0.00010118,2]
[352264532,1739021438721,-500.0,0.00010118,2]
[352264534,1739021438730,-291.70620789,0.00010118,2]
[352264536,1739021438739,-500.94689236,0.00010118,2]
[352264538,1739021438748,-500.0,0.00010118,2]
[352264540,1739021438757,-500.0,0.00010118,2]
[352264542,1739021438767,-165.71449953,0.00010118,2]
[352264544,1739021438776,-500.0,0.00010118,2]
[352264546,1739021438785,-500.0,0.00010118,2]
[352264548,1739021438794,-500.0,0.00010118,2]
[352264550,1739021438803,-500.0,0.00010118,2]
[352264552,1739021438812,-500.69323942,0.00010118,2]
[352264554,1739021438821,-500.65868397,0.00010118,2]
[352264556,1739021438831,-500.0,0.00010118,2]
[352264558,1739021438840,-500.0,0.00010118,2]
[352264560,1739021438849,-500.0,0.00010118,2]
[352264562,1739021438858,-500.0,0.00010118,2]
[352264563,1739021438867,-500.0,0.00010118,2]
[352264565,1739021438876,-500.0,0.00010118,2]
[352264567,1739021438886,-500.0,0.00010118,2]
[352264569,1739021438895,-500.0,0.00010118,2]
[352264571,1739021438904,-506.53070723,0.00010118,2]
[352264573,1739021438914,-500.0,0.00010118,2]
[352264575,1739021438923,-500.0,0.00010118,2]
[352264577,1739021438932,-500.0,0.00010118,2]
[352264579,1739021438941,-500.0,0.00010118,2]
[352264581,1739021438950,-500.46571881,0.00010118,2]
[352264583,1739021438960,-503.48884204,0.00010118,2]
[352264585,1739021438969,-500.0,0.00010118,2]
[352264587,1739021438978,-517.27892114,0.00010118,2]
[352264589,1739021438987,-500.0,0.00010118,2]
[352264591,1739021438996,-503.16422567,0.00010118,2]
[352264593,1739021439005,-505.83012658,0.00010118,2]
[352264595,1739021439015,-500.0,0.00010118,2]
[352264597,1739021439024,-500.0,0.00010118,2]
[352264599,1739021439033,-500.0,0.00010118,2]
[352264601,1739021439042,-500.0,0.00010118,2]
[352264603,1739021439051,-500.0,0.00010118,2]
[352264605,1739021439060,-501.86669484,0.00010118,2]
[352264607,1739021439069,-502.9059713,0.00010118,2]
[352264609,1739021439079,-503.95941141,0.00010118,2]
[352264611,1739021439088,-500.0,0.00010118,2]
[352264613,1739021439097,-500.0,0.00010118,2]
[352264615,1739021439107,-500.0,0.00010118,2]
[352264617,1739021439116,-500.0,0.00010118,2]
[352264619,1739021439125,-500.0,0.00010118,2]
[352264621,1739021439135,-500.0,0.00010118,2]
[352264622,1739021439143,-500.0,0.00010118,2]
[352264624,1739021439152,-500.0,0.00010118,2]
[352264626,1739021439162,-500.0,0.00010118,2]
[352264628,1739021439171,-500.0,0.00010118,2]
[352264630,1739021439181,-498.07345284,0.00010118,2]
[352264632,1739021439191,-501.77136793,0.00010118,2]
[352264634,1739021439202,-500.0,0.00010118,2]
[352264636,1739021439212,-514.24783435,0.00010118,2]
[352264638,1739021439221,-500.0,0.00010118,2]
[352264641,1739021439231,-500.0,0.00010118,2]
[352264642,1739021439240,-514.57772507,0.00010118,2]
[352264644,1739021439250,-500.0,0.00010118,2]
[352264646,1739021439259,-500.0,0.00010118,2]
[352264648,1739021439268,-502.29042593,0.00010118,2]
[352264650,1739021439279,-500.0,0.00010118,2]
[352264652,1739021439289,-500.0,0.00010118,2]
[352264654,1739021439298,-500.0,0.00010118,2]
[352264656,1739021439307,-500.0,0.00010118,2]
[352264658,1739021439316,-500.0,0.00010118,2]
[352264660,1739021439325,-500.0,0.00010118,2]
[352264662,1739021439334,-500.95930268,0.00010118,2]
[352264664,1739021439343,-500.0,0.00010118,2]
[352264666,1739021439352,-569.04110843,0.00010118,2]
[352264668,1739021439361,-500.0,0.00010118,2]
[352264670,1739021439371,-500.0,0.00010118,2]
[352264672,1739021439382,-500.0,0.00010118,2]
[352264674,1739021439391,-501.86294938,0.00010118,2]
[352264676,1739021439400,-500.0,0.00010118,2]
[352264678,1739021439410,-500.0,0.00010118,2]
[352264680,1739021439419,-500.0,0.00010118,2]
[352264682,1739021439429,-500.0,0.00010118,2]
[352264684,1739021439438,-500.0,0.00010118,2]
[352264686,1739021439447,-500.0,0.00010118,2]
[352264688,1739021439456,-500.0,0.00010118,2]
[352264689,1739021439466,-503.90134643,0.00010118,2]
[352264691,1739021439477,-516.15672335,0.00010118,2]
[352264693,1739021439490,-500.0,0.00010118,2]
[352264695,1739021439502,-516.64206931,0.00010118,2]
[352264697,1739021439512,-563.29056719,0.00010118,2]
[352264700,1739021439522,-500.0,0.00010118,2]
[352264701,1739021439533,-500.0,0.00010118,2]
[352264703,1739021439542,-501.16162729,0.00010118,2]
[352264705,1739021439551,-500.0,0.00010118,2]
[352264707,1739021439561,-500.0,0.00010118,2]
[352264709,1739021439571,-500.0,0.00010118,2]
[352264711,1739021439581,-500.0,0.00010118,2]
[352264713,1739021439590,-500.0,0.00010118,2]
[352264715,1739021439600,-500.0,0.00010118,2]
[352264717,1739021439609,-500.0,0.00010118,2]
[352264719,1739021439619,-500.0,0.00010118,2]
[352264721,1739021439628,-500.0,0.00010118,2]
[352264724,1739021439638,-500.0,0.00010118,2]
[352264725,1739021439648,-500.0,0.00010118,2]
[352264727,1739021439657,-500.0,0.00010118,2]
[352264729,1739021439666,-500.0,0.00010118,2]
[352264731,1739021439675,-500.0,0.00010118,2]
[352264733,1739021439685,-500.0,0.00010118,2]
[352264735,1739021439694,-509.84,0.00010118,2]
[352264737,1739021439703,-500.0,0.00010118,2]
[352264739,1739021439712,-500.0,0.00010118,2]
[352264741,1739021439721,-282.96070242,0.00010118,2]
[352264743,1739021439731,-500.0,0.00010118,2]
[352264745,1739021439740,-500.0,0.00010118,2]
[352264747,1739021439750,-500.0,0.00010118,2]
[352264749,1739021439759,-500.0,0.00010118,2]
[352264751,1739021439768,-500.0,0.00010118,2]
[352264753,1739021439777,-1034.4,0.00010118,2]
[352264755,1739021439786,-500.0,0.00010118,2]
[352264757,1739021439795,-500.0,0.00010118,2]
[352264759,1739021439805,-1017.61,0.00010118,2]
[352264761,1739021439817,-500.0,0.00010118,2]
[352264763,1739021439826,-1000.22,0.00010118,2]
[352264765,1739021439835,-500.0,0.00010118,2]
[352264767,1739021439844,-500.0,0.00010118,2]
[352264769,1739021439853,-500.0,0.00010118,2]
[352264771,1739021439863,-892.76,0.00010118,2]
[352264773,1739021439872,-500.0,0.00010118,2]
[352264775,1739021439881,-500.0,0.00010118,2]
[352264777,1739021439891,-500.0,0.00010118,2]
[352264779,1739021439900,-500.0,0.00010118,2]
[352264781,1739021439909,-500.0,0.00010118,2]
[352264783,1739021439919,-501.3763129,0.00010118,2]
[352264785,1739021439937,-538.2,0.00010118,2]
[352264787,1739021439948,-500.0,0.00010118,2]
[352264789,1739021439958,-159.35,0.00010137,2]
[352264791,1739021439967,-250.0,0.0001025,2]
[352264793,1739021439977,-500.0,0.00010253,2]
[352264795,1739021439986,-500.0,0.00010253,2]
[352264797,1739021439995,-501.13568394,0.00010253,2]
[352264799,1739021440004,-500.0,0.00010253,2]
[352264801,1739021440013,-500.0,0.00010253,2]
[352264803,1739021440022,-500.0,0.00010253,2]
[352264805,1739021440031,-500.0,0.00010253,2]
[352264807,1739021440040,-500.0,0.00010253,2]
[352264809,1739021440049,-500.0,0.00010253,2]
[352264811,1739021440058,-348.3589102,0.00010253,2]
[352264813,1739021440068,-500.0,0.00010253,2]
[352264815,1739021440077,-492.07935511,0.00010253,2]
[352264817,1739021440086,-500.0,0.00010253,2]
[352264819,1739021440095,-500.0,0.00010253,2]
[352264821,1739021440104,-500.0,0.00010253,2]
[352264823,1739021440113,-500.0,0.00010253,2]
[352264824,1739021440122,-500.0,0.00010253,2]
[352264826,1739021440132,-500.0,0.00010253,2]
[352264828,1739021440141,-500.0,0.00010253,2]
[352264830,1739021440150,-500.0,0.00010253,2]
[352264832,1739021440159,-500.0,0.00010253,2]
[352264834,1739021440168,-500.0,0.00010253,2]